Cogmind - Beta 16.1 @@@ ROGUE MODE // 2026.06.20 @ 00:13:53 Player: Nalesnig Result: Destroyed by P-80 Master with Gamma Rifle Performance ------------- Evolutions (8) 4000 Regions Visited (15) 3000 Robots Destroyed (178) 890 Value Destroyed (6962) 6962 Prototype IDs (31) 620 Alien Tech Used (2) 400 Bonus (378) 378 TOTAL SCORE: 16250 Bonus ------- High Alert Combat Kills 78 Met Zhirov 300 Cogmind --------- Core Integrity 0/1450 Matter 300/300 Energy 98/100 System Corruption 15% Temperature Cool (0) Movement Core (50) Location -2/Research Parts ------- > --- POWER (3) -------- (None) > --- PROPULSION (8) --- (None) > --- UTILITY (9) ------ Advanced Targeting Computer Improved Target Analyzer > --- WEAPON (3) ------- (None) > --- INVENTORY (5) ---- Advanced Power Amplifier Long-range Terrain Scanner Long-range Proton Cannon Railgun Gamma Bomb Array Peak State ------------ > --- POWER ------------ Fusion Reactor Micro Antimatter Reactor Light Quantum Reactor > --- PROPULSION ------- Biometal Leg Biometal Leg Gravmag Array Improved Gyrokinetic Inverter Improved Gyrokinetic Inverter Improved Gyrokinetic Inverter Combat Antigrav System > --- UTILITY ---------- Large Storage Unit Large Storage Unit Advanced Energy Well Gravity Neutralizer Long-range Sensor Array Advanced Targeting Computer Improved Target Analyzer Experimental Thermal Defense Suite Advanced Force Field > --- WEAPON ----------- Hardcell Cannon Linear Accelerator Plasma Sword > --- INVENTORY -------- Light Quantum Reactor Armored Huge Wheel Advanced Power Amplifier Matter Compressor Long-range Terrain Scanner Particle Accelerator Advanced Reaction Control System Transdimensional Reconstructor Enhanced Quantum Rifle Long-range Proton Cannon Long-range Proton Cannon Long-range Proton Cannon Gamma Bomb Array Fusion Bomb Launcher [Rating: 159] Favorites ----------- Power Micro Fission Core Engine Ion Engine Power Core Micro Fission Core Reactor Fusion Reactor Propulsion Gravmag Array Treads Spiked Treads Leg Improved VSS Leg Wheel Armored Wheel Hover Unit Gravmag Array Flight Unit Advanced Surge Thruster Utility Large Storage Unit Device Advanced Heat Sink Storage Large Storage Unit Processor Improved Target Analyzer Hackware Hacking Suite Protection Hardened Medium Armor Plating Weapon Gauss Cannon Energy Gun Cooled Pulse Rifle Energy Cannon Advanced Beam Cannon Ballistic Gun Improved Heavy Machine Gun Ballistic Cannon Gauss Cannon Launcher Grenade Launcher Special Weapon Flamer Impact Weapon Heavy Mace Slashing Weapon Plasma Sword Piercing Weapon Makeshift Spear Build | -11 -10 -10 -8 -7 -7 -7 -6 -5 -5 -5 -5 -4 -4 -3 -2 ------- Run | Yrd Mat Sub Mat Fac Was Fac Fac Fac Upp Upp Zhi Pro Fac Res Res Slots Evolved 16 | . . . 4 2 . . 2 2 . . . . 2 2 2 Power 2 | . . . . . . . . 1 . . . . . 1 . Propulsion 6 | . . . 1 1 . . 1 . . . . . 1 1 1 Utility 7 | . . . 2 1 . . 1 1 . . . . 1 . 1 Weapon 1 | . . . 1 . . . . . . . . . . . . Parts Attached 165 | 8 3 15 18 14 2 12 24 16 1 1 3 1 15 11 21 Power 20 | 2 . 2 1 1 1 1 2 2 . . 1 1 2 1 3 Engine 8 | 2 . 2 . . 1 . 2 1 . . . . . . . Core 7 | . . . 1 1 . 1 . 1 . . . 1 2 . . Reactor 5 | . . . . . . . . . . . 1 . . 1 3 Propulsion 40 | 2 . 5 3 3 1 3 2 5 . 1 . . 4 3 8 Treads 8 | . . 1 2 1 . 2 1 . . . . . . . 1 Leg 3 | . . . . . . . 1 . . . . . . . 2 Wheel 11 | 2 . 4 1 2 1 1 . . . . . . . . . Hover 17 | . . . . . . . . 5 . 1 . . 4 3 4 Flight 1 | . . . . . . . . . . . . . . . 1 Utility 50 | 2 1 1 7 6 . 3 10 7 1 . 2 . 4 3 3 Device 29 | 1 . . 2 4 . 2 6 4 1 . 1 . 4 3 1 Storage 6 | 1 1 . . 1 . . . 1 . . 1 . . . 1 Processor 5 | . . . 1 1 . . 2 . . . . . . . 1 Hackware 1 | . . . 1 . . . . . . . . . . . . Protection 9 | . . 1 3 . . 1 2 2 . . . . . . . Artifact . | . . . . . . . . . . . . . . . . Weapon 55 | 2 2 7 7 4 . 5 10 2 . . . . 5 4 7 Energy Gun 7 | 1 . . 1 . . . 2 . . . . . 1 1 1 Energy Cannon 11 | . . 1 1 1 . 1 3 . . . . . 1 . 3 Ballistic Gun 14 | 1 . 5 4 . . . 2 . . . . . 1 . 1 Ballistic Cannon 11 | . 1 . . 1 . 4 2 1 . . . . . 2 . Launcher 5 | . 1 . . 1 . . . 1 . . . . . 1 1 Special Weapon 1 | . . . 1 . . . . . . . . . . . . Impact Weapon 1 | . . . . . . . 1 . . . . . . . . Slashing Weapon 4 | . . . . 1 . . . . . . . . 2 . 1 Piercing Weapon 1 | . . 1 . . . . . . . . . . . . . Special Melee Weapon . | . . . . . . . . . . . . . . . . Unidentified Prototypes 21 | . . . 2 1 . 1 8 1 . . 4 . 1 2 1 Parts Lost 69 | . . 6 1 4 4 10 5 1 . 4 . 2 1 4 27 Power 12 | . . 1 . . . 2 . 1 . . . 1 1 1 5 Propulsion 17 | . . 2 . 2 . 2 . . . 1 . . . 1 9 Utility 22 | . . 1 . 2 2 2 4 . . 2 . 1 . 1 7 Weapon 18 | . . 2 1 . 2 4 1 . . 1 . . . 1 6 Highest Loss Streak 17 | . . 2 1 1 4 4 4 1 . 4 . 1 1 4 17 To Critical Strikes 1 | . . . . . . . . . . 1 . . . . . Average Backups 13 | 2 7 12 13 14 19 17 18 16 13 10 12 11 13 13 11 Power 1 | . 1 1 1 2 4 3 2 . . . . . . . . Propulsion 3 | 1 2 3 2 2 3 2 4 5 5 4 4 4 3 3 . Utility 3 | . . 1 3 3 5 5 5 4 3 1 1 2 2 3 4 Weapon 5 | . 3 6 5 6 7 6 5 5 5 4 6 4 5 5 5 Tool/Special . | . . . . . . . . . . . . . . . . Unused Backups 36 | . . 4 6 2 . 2 5 5 1 . . . 3 2 6 Power 3 | . . . 1 1 . . 1 . . . . . . . . Propulsion 8 | . . 1 2 1 . . . 2 . . . . 1 1 . Utility 16 | . . 1 1 . . 2 3 3 1 . . . 1 . 4 Weapon 9 | . . 2 2 . . . 1 . . . . . 1 1 2 Tool/Special . | . . . . . . . . . . . . . . . . Average Slot Usage (%) 90 | . 100 99 98 96 68 89 87 89 88 82 73 77 86 84 69 Engine 4 | . 14 13 1 . 4 2 2 5 5 5 2 . . . . Core 3 | . . . 7 7 . 4 3 4 5 5 5 4 4 3 . Reactor 1 | . . . . . . . . . . . 2 5 5 6 8 Treads 7 | . . 8 18 15 . 14 13 3 . . . . . . . Wheel 8 | . 28 19 8 12 14 7 6 1 . . . . . . . Hover 6 | . . . . . . . . 11 17 17 17 17 20 21 16 Device 16 | . 14 2 8 19 12 15 19 22 23 27 26 17 24 22 12 Storage 8 | . 14 14 9 7 7 7 6 5 5 5 7 11 10 9 9 Processor 4 | . . . 8 2 7 6 5 5 5 5 5 5 5 4 7 Protection 5 | . . 11 9 7 2 6 6 5 5 . . . . . . Energy Cannon 3 | . . 1 2 7 7 3 4 6 5 5 . 5 5 3 1 Ballistic Gun 8 | . 14 23 21 9 2 . 3 4 5 . . . 1 . . Ballistic Cannon 4 | . 5 2 . . 4 17 4 2 5 6 . 6 3 3 3 Slashing Weapon 1 | . . . . 2 . 1 . . . . . . 3 3 3 Peak Build Rating 159 | 7 7 18 32 48 50 54 74 92 92 92 96 99 119 141 159 Average Rating 58 | 5 7 14 27 39 42 51 62 86 92 85 80 87 111 126 116 On Entrance 60 | . 7 7 18 32 48 33 51 74 92 92 85 96 87 118 130 Avg Prop Armor Cover (%) 13 | . . 11 14 12 . 13 15 13 . . . . . . 10 Naked Turns . | . . . . . . . . . . . . . . . . Heaviest Build 127 | 14 30 41 46 75 79 72 73 89 71 75 62 63 68 99 127 Greatest Support 108 | 26 26 36 62 44 56 56 28 51 51 63 62 62 80 92 108 Greatest Overweight (x) 4 | 2 1 2 3 2 1 2 2 4 1 1 . 1 . 1 4 Average Overweight (x) 1 | . . . 2 1 . 1 2 1 1 . . . . . . Largest Inventory Capacity 20 | 8 15 15 15 20 20 20 20 20 15 15 15 15 15 15 15 Average Capacity 15 | 7 9 15 15 16 20 20 20 17 15 15 15 15 15 15 12 Most Carried 20 | 4 8 15 15 19 20 20 20 20 15 15 15 14 15 15 15 Average Carried 14 | 2 7 13 14 15 19 18 19 17 15 12 14 13 14 14 11 Final Capacity 20 | 8 15 15 15 20 20 20 20 15 15 15 15 15 15 15 5 Final Carried 20 | 4 8 14 15 19 20 20 20 15 15 12 13 14 15 13 5 Class Distribution -------------------- 54% | Mutant 20% | Tank 13% | Gunner 4% | Derelict-Gunner 3% | Scavenger-Mutant Dominant Class ---------------- Mutant | -10/Materials Mutant | -10/Subcaves Derelict-Gunner | -8/Materials Tank | -7/Factory Mutant | -7/Waste Gunner | -7/Factory Gunner | -6/Factory Tank | -5/Factory Tank | -5/Upper Caves Mutant | -5/Upper Caves Mutant | -5/Zhirov Mutant | -4/Proximity Caves Mutant | -4/Factory Mutant | -3/Research Mutant | -2/Research Resources | -11 -10 -10 -8 -7 -7 -7 -6 -5 -5 -5 -5 -4 -4 -3 -2 ----------- Run | Yrd Mat Sub Mat Fac Was Fac Fac Fac Upp Upp Zhi Pro Fac Res Res Matter Collected 5959 | 274 161 334 811 453 . 931 722 611 198 52 191 138 247 63 773 Remotely . | . . . . . . . . . . . . . . . . Salvage Created 7658 | 37 233 444 1232 782 . 732 723 744 131 40 390 272 473 218 1207 Parts 376 | 4 16 33 77 39 . 33 30 39 4 4 . 13 12 11 61 Haulers Intercepted 9 | . 1 . 5 . . . 1 1 . . . . 1 . . Recyclers Shooed 5 | . . . . . . . . 2 . . . . 2 . 1 Parts Field Recycled . | . . . . . . . . . . . . . . . . Retrieved Matter . | . . . . . . . . . . . . . . . . Parts Self-Destructed 22 | . . . . . . . . . 4 9 . 9 . . . Prevented 5 | . . . . . . . . . . 1 . 4 . . . Parts Restored . | . . . . . . . . . . . . . . . . Kills | -11 -10 -10 -8 -7 -7 -7 -6 -5 -5 -5 -5 -4 -4 -3 -2 ------- Run | Yrd Mat Sub Mat Fac Was Fac Fac Fac Upp Upp Zhi Pro Fac Res Res Combat Hostiles Destroyed 126 | . 7 12 22 13 . 13 9 8 3 1 . 9 4 5 20 Melee 6 | . . . 1 . . . . . . . . . 3 . 2 Guns 43 | . 2 9 19 6 . . 4 . 2 . . . . . 1 Cannons 56 | . 5 3 2 6 . 13 5 7 1 1 . 3 1 4 5 AOE 19 | . . . . . . . . 1 . . . 6 . 1 11 Classes Destroyed 15 | 1 4 2 3 3 . 1 . . . . . . . . 1 Worker 2 | . . . . . . 1 . . . . . . . . 1 Builder 11 | . . . . 1 . 1 . 2 . . . . . . 7 Tunneler 9 | 2 . . . 2 . 1 1 . . . . . . 1 2 Hauler 9 | . 1 . 5 . . . 1 1 . . . . 1 . . Recycler 11 | . . . . 1 . 5 1 2 . . . . 1 . 1 Operator 7 | . . . 1 . . 2 2 1 . . . . . 1 . Watcher 3 | . 1 . . 1 . . . 1 . . . . . . . Swarmer 30 | . 3 . 4 3 . 5 . . 1 . . 7 . 2 5 Cutter 1 | . . . . . . . . . . . . . . . 1 Grunt 29 | . 4 . 9 4 . 3 4 . 1 . . . . . 4 Brawler 3 | . . . 1 . . 1 1 . . . . . . . . Sentry 20 | . . 1 6 4 . 3 2 . 1 . . . . . 3 Hunter 4 | . . . 2 . . . . . . . . . . . 2 Programmer 28 | . . . . 2 . 1 2 8 . 1 . 2 4 3 5 Subdweller 11 | . . 11 . . . . . . . . . . . . . Best Kill Streak 16 | 2 3 2 5 3 . 6 4 4 3 1 . 5 2 2 16 Combat Bots Only 7 | . 3 2 4 3 . 3 4 3 3 1 . 5 2 2 7 Max Kills in Single Turn 7 | 1 1 2 2 2 . 1 1 2 1 1 . 4 1 1 7 Gunslinging 1 | . . 1 1 . . . . . . . . . . . . Exploded 4 | . . . . . . . . 1 . . . 4 . 1 4 Melee 1 | . . . 1 . . . . . . . . . 1 . 1 Uniques/NPCs Destroyed . | . . . . . . . . . . . . . . . . Combat | -11 -10 -10 -8 -7 -7 -7 -6 -5 -5 -5 -5 -4 -4 -3 -2 -------- Run | Yrd Mat Sub Mat Fac Was Fac Fac Fac Upp Upp Zhi Pro Fac Res Res Hostile Shots Fired 1178 | . 19 63 74 157 3 200 80 47 14 50 . 27 29 79 336 Missed 352 | . 4 20 16 43 . 58 21 12 2 16 . 12 13 29 106 Hits 826 | . 15 43 58 114 3 142 59 35 12 34 . 15 16 50 230 Melee 16 | . . . . . 3 2 3 . . . . . . . 8 Projectile 810 | . 15 43 58 114 . 140 56 35 12 34 . 15 16 50 222 AOE 2 | . . . . . . . . . . . . . 1 . 1 Critical Strikes 51 | . 1 3 3 1 1 2 3 3 . 3 . 4 1 7 19 Actively Blocked 2 | . . . . . . . . . . . . . 1 1 . Part Disruptions 4 | . . . . . . 1 . . . . . . . 2 1 Damage Taken 13294 | 37 163 946 861 880 163 1764 958 680 361 438 . 259 639 766 4379 Core 2577 | . 24 180 90 82 58 183 127 17 119 13 . 70 136 63 1415 Absorbed by Shields 2159 | . . . . 320 . . . 245 127 143 . 38 . 372 914 Redirected to Shielding 102 | . . . . . . 89 13 . . . . . . . . Ignored by Resistances 15 | . . . . . . . . . . . . . . 15 . Core Remaining (%) 75 | 100 . 18 83 . . 53 85 . . . . 78 88 95 . Volleys Fired 448 | 5 25 48 59 43 . 52 42 54 36 8 . 9 12 25 30 Largest 3 | 2 2 2 3 3 . 3 3 3 3 3 . 3 2 2 3 Hottest 243 | 60 60 110 196 176 . 160 149 174 152 181 . 181 116 135 243 Shots Fired 943 | 10 49 89 175 120 1 113 90 98 50 23 . 17 19 39 50 Gun 432 | 10 29 70 161 61 . . 58 23 8 1 . . 7 . 4 Cannon 493 | . 19 18 8 59 1 113 32 75 42 22 . 14 12 37 41 Launcher 12 | . 1 1 . . . . . . . . . 3 . 2 5 Special 6 | . . . 6 . . . . . . . . . . . . Kinetic 655 | 5 43 75 161 65 1 100 57 44 15 16 . 9 12 22 30 Thermal 220 | . . 13 14 55 . 13 23 53 35 7 . 5 . . 2 Explosive 6 | . 1 1 . . . . . . . . . . . . 4 Electromagnetic 62 | 5 5 . . . . . 10 1 . . . 3 7 17 14 Robot Hit Streak 40 | 6 14 25 25 17 3 11 40 11 7 5 . 4 4 10 19 Robot Miss Streak 5 | 1 3 1 3 2 . 5 1 3 3 3 . 2 3 4 2 Penetration Max 1 | . . . . 1 . . . . . . . . . . . Secondary Targets 4 | . . 1 3 . . . . . . . . . . . . Max Gunslinging Chain 1 | . . 1 1 . . . . . . . . . . . . Shots Hit Robots 670 | 7 35 70 122 95 1 71 73 45 13 15 11 10 28 28 46 Core Hits 292 | 4 14 22 52 32 1 27 26 20 5 3 1 9 8 15 53 Critical Kills 3 | . . . 1 . . 1 . 1 . . . . . . . Critical Parts Destroyed 3 | . . . . . . . 2 . . . 1 . . . . Critical Strikes 37 | . 1 1 2 1 . 5 3 3 . 2 1 3 5 5 5 Burn 1 | . . . 1 . . . . . . . . . . . . Meltdown 1 | . . . . . . 1 . . . . . . . . . Destroy 4 | . . 1 1 . . . 2 . . . . . . . . Blast 18 | . 1 . . . . 4 1 2 . 2 . 3 . 3 2 Corrupt 3 | . . . . . . . . . . . . . . 2 1 Smash 2 | . . . . . . . . 1 . . 1 . . . . Sever 8 | . . . . 1 . . . . . . . . 5 . 2 Melee Attacks 249 | . . 7 19 43 . 5 5 16 . . 11 . 76 28 39 Impact 48 | . . . . . . . 5 16 . . 11 . 16 . . Slashing 170 | . . . . 38 . 5 . . . . . . 60 28 39 Piercing 31 | . . 7 19 5 . . . . . . . . . . . Sneak Attacks 14 | . . . 1 1 . 2 1 1 . . . . 6 . 2 Combat Hostiles . | . . . . . . . . . . . . . . . . Follow-up Attacks . | . . . . . . . . . . . . . . . . Damage Inflicted 21774 | 113 483 1274 1936 2146 26 2165 1906 1885 365 528 987 650 1385 1311 4614 Guns 5482 | 66 179 1002 1604 875 . . 1111 352 117 . . . 114 . 62 Cannons 8532 | . 257 272 104 955 26 1907 704 1026 248 528 . 355 89 899 1162 Explosions 3951 | 47 47 . . . . 81 . 334 . . . 295 . 412 2735 Melee 3685 | . . . 184 316 . 177 91 173 . . 987 . 1182 . 575 Ramming 80 | . . . . . . . . . . . . . . . 80 Kinetic 10183 | 25 381 1083 1604 902 26 1682 1131 826 259 362 . 259 114 717 812 Thermal 3555 | 47 47 191 148 928 . 306 458 815 106 166 . 96 . 215 32 Explosive 2391 | . . . . . . . . . . . . . . . 2391 Electromagnetic 1880 | 41 55 . . . . . 226 71 . . . 295 89 379 724 Impact 1377 | . . . . . . . 91 173 . . 987 . 126 . . Slashing 2124 | . . . . 316 . 177 . . . . . . 1056 . 575 Piercing 184 | . . . 184 . . . . . . . . . . . . Highest Corruption 15 | . 1 1 . 2 7 12 5 5 5 7 7 8 6 4 15 Average Corruption 4 | . 1 1 . 1 6 7 3 2 5 6 7 7 4 2 8 Corruption Purged . | . . . . . . . . . . . . . . . . Corruption Blocked . | . . . . . . . . . . . . . . . . Effects 132 | . . 9 . 4 3 42 4 7 20 4 4 6 6 8 15 Message Errors 30 | . . 3 . 1 2 7 1 2 4 . 2 2 3 1 2 Matter Fused 27 | . . 2 . 2 . 11 . 1 4 1 1 1 1 2 1 Heat Flow Errors 18 | . . 1 . . . 7 . . 2 1 1 . 1 3 2 Energy Discharges 12 | . . . . . . 2 2 1 2 1 . 1 1 . 2 Parts Rejected 4 | . . . . . . . 1 . . . . . . . 3 Parts Fused 2 | . . . . . . 1 . . 1 . . . . . . Data Loss (minor) 17 | . . 3 . 1 . 6 . 1 3 . . . . . 3 Data Loss (major) 3 | . . . . . . 2 . . 1 . . . . . . Misfires 7 | . . . . . 1 3 . 1 1 . . . . 1 . Alerts 3 | . . . . . . 2 . . 1 . . . . . . Misdirections 2 | . . . . . . . . . . . . . . . 2 Weapon Failures 7 | . . . . . . 1 . 1 1 1 . 2 . 1 . Overload Shots 5 | . . . . . . . 5 . . . . . . . . Effects 1 | . . . . . . . 1 . . . . . . . . Energy Bleed 1 | . . . . . . . 1 . . . . . . . . Overflow Damage 1675 | . . . . 23 . 97 51 287 . 38 505 52 240 75 307 Projectiles 346 | . . . . . . 54 . 21 . 38 . 36 . 75 122 Explosions 364 | . . . . . . . . 210 . . . 16 . . 138 Melee 965 | . . . . 23 . 43 51 56 . . 505 . 240 . 47 Knockbacks 53 | . 5 . . 1 . 13 4 7 1 1 . 3 . 6 12 Impact 3 | . . . . . . . 1 1 . . . . . . 1 Kinetic 46 | . 5 . . 1 . 13 3 5 1 1 . 3 . 6 8 Secondary 4 | . . . . . . . . 1 . . . . . . 3 Self-Inflicted Damage 382 | 37 . . . . . 82 . 115 . . . . . . 148 Shots 7 | 1 . . . . . 1 . 2 . . . . . . 3 Rammed 20 | . . . . . . . . . . . . . . . 20 Targets Rammed 20 | . . . . . . . . . . . . . . . 20 Kicked . | . . . . . . . . . . . . . . . . Crushed . | . . . . . . . . . . . . . . . . Highest Temperature 459 | 52 47 190 237 396 . 255 187 . 216 109 141 9 229 284 459 Average Temperature 95 | 27 16 35 48 95 . 111 87 . 122 32 94 5 133 83 148 Received Heat Transfer 1731 | . 87 126 342 183 . 291 342 . 30 33 . 42 12 12 231 Effects 18 | . . . . 4 . . . . . . . . . . 14 Shutdowns 6 | . . . . 1 . . . . . . . . . . 5 Energy Bleed 2 | . . . . 1 . . . . . . . . . . 1 Interference 7 | . . . . 1 . . . . . . . . . . 6 Matter Decay 1 | . . . . 1 . . . . . . . . . . . Short Circuit 2 | . . . . . . . . . . . . . . . 2 Siege Activations . | . . . . . . . . . . . . . . . . Martial Activations . | . . . . . . . . . . . . . . . . Shielding Activations . | . . . . . . . . . . . . . . . . Robots Disrupted . | . . . . . . . . . . . . . . . . Combat Hostiles . | . . . . . . . . . . . . . . . . Robots Corrupted 5 | . . . . . . . 1 1 . . 1 . 1 . 1 Combat Hostiles 2 | . . . . . . . . . . . 1 . . . 1 Parts Fried 13 | . . . . . . . 1 4 . . 1 . . 1 6 Impact Corruptions 14 | . . . . . . . 2 1 . . 9 . 1 . 1 Robots Melted 1 | . . . . . . 1 . . . . . . . . . Combat Hostiles . | . . . . . . . . . . . . . . . . Parts Melted 10 | . . . 4 4 . 1 . 1 . . . . . . . Heat Transferred 5432 | 100 50 259 665 1669 . 500 779 779 148 185 . 111 . 150 37 Parts Sabotaged . | . . . . . . . . . . . . . . . . Parts Stolen . | . . . . . . . . . . . . . . . . Parts Stripped . | . . . . . . . . . . . . . . . . Power Chain Reactions 3 | 1 1 . . . . . . . . . . . . 1 . Alert | -11 -10 -10 -8 -7 -7 -7 -6 -5 -5 -5 -5 -4 -4 -3 -2 ------- Run | Yrd Mat Sub Mat Fac Was Fac Fac Fac Upp Upp Zhi Pro Fac Res Res Maximum Alert Level 2 | . . . 1 . . 1 . 1 . . . . . 1 2 Low Security (%) 86 | 100 100 . 52 100 100 91 100 75 . . . . 100 91 67 Level 1 11 | . . . 47 . . 8 . 24 . . . . . 8 11 Level 2 1 | . . . . . . . . . . . . . . . 20 Level 3 . | . . . . . . . . . . . . . . . . Level 4 . | . . . . . . . . . . . . . . . . Level 5 . | . . . . . . . . . . . . . . . . High Security . | . . . . . . . . . . . . . . . . Max Security . | . . . . . . . . . . . . . . . . Peak Influence 505 | 5 151 . 289 153 48 231 140 352 . . . . 123 281 505 Initial 157 | . 3 . . 120 48 . 105 61 . . . . 84 54 157 Average 84 | 1 43 . 161 45 20 62 45 121 . . . . 37 40 234 Influence Increases 5352 | 10 342 20 709 504 1 586 359 614 60 155 15 245 372 441 919 Destroy 0b10 Robot/C 2300 | . 140 20 440 260 . 260 180 160 60 20 . 180 80 100 400 Destroy 0b10 Robot/NC 275 | 10 10 . 30 25 . 50 25 35 . . 15 . 10 10 55 Destroy Leader 574 | . 34 . 130 92 . 60 52 44 . . . 20 32 20 90 Successful Hack 207 | . 41 . 17 12 . . 62 45 . . . . 16 . 14 Select Force Hacks 30 | . 30 . . . . . . . . . . . . . . Disable Machine 345 | . 15 . 15 . . 135 15 120 . . . . 15 15 15 Destroy Structure 811 | . 12 . 17 40 1 66 10 210 . . . . 114 86 255 Partial Spotted 60 | . 15 . . . . . . . . . . . 30 . 15 Lose Combat Pursuer 750 | . 45 . 60 75 . 15 15 . . 135 . 45 75 210 75 Influence Decreases 4880 | 5 208 159 444 631 139 369 450 424 376 90 80 110 404 263 728 Entered New Map 888 | . 2 67 . 145 90 . 112 65 118 . 65 . 51 49 124 Time Decay 3415 | 5 206 92 434 456 20 289 280 349 258 70 15 90 343 174 334 Lost Part 549 | . . . 10 30 29 80 30 10 . 20 . 20 10 40 270 Purge Threat 28 | . . . . . . . 28 . . . . . . . . Squads Dispatched 41 | . 2 . 6 5 . 3 4 3 . . . . 7 2 9 Investigation 7 | . 1 . 1 2 . 1 . . . . . . 1 . 1 Extermination 18 | . . . . 2 . 2 2 3 . . . . 5 2 2 Reinforcement 10 | . 1 . 2 1 . . 2 . . . . . . . 4 Assault . | . . . . . . . . . . . . . . . . Garrison 6 | . . . 3 . . . . . . . . . 1 . 2 Intercept . | . . . . . . . . . . . . . . . . Searches Triggered . | . . . . . . . . . . . . . . . . Construction Impeded 3 | . . . . 1 . . . . . . . . . . 2 Haulers Reinforced 3 | . . . . . . . 2 . . . . . . . 1 Active Scanning Responses . | . . . . . . . . . . . . . . . . Cargo Convoy Interrupts . | . . . . . . . . . . . . . . . . Stealth | -11 -10 -10 -8 -7 -7 -7 -6 -5 -5 -5 -5 -4 -4 -3 -2 --------- Run | Yrd Mat Sub Mat Fac Was Fac Fac Fac Upp Upp Zhi Pro Fac Res Res Distress Signals 16 | . 2 . 3 1 . . 1 2 . . . . 1 . 6 Communications Jammed 2 | . . . . . . 2 . . . . . . . . . Distress Signals 2 | . . . . . . 2 . . . . . . . . . Times Spotted 246 | . 19 13 33 21 6 18 14 15 3 8 . 8 18 22 48 Peak Tracking Total 17 | . 3 2 5 3 6 4 4 5 3 7 . 5 5 7 17 Tactical Retreats 27 | . 3 . 2 2 . 1 1 . . 4 . 1 3 6 4 Traps | -11 -10 -10 -8 -7 -7 -7 -6 -5 -5 -5 -5 -4 -4 -3 -2 ------- Run | Yrd Mat Sub Mat Fac Was Fac Fac Fac Upp Upp Zhi Pro Fac Res Res Traps Triggered 16 | . 1 2 1 1 . 3 1 4 . . . . 1 1 1 Indirectly . | . . . . . . . . . . . . . . . . Trap Hack Attempts . | . . . . . . . . . . . . . . . . Triggered . | . . . . . . . . . . . . . . . . Disarmed . | . . . . . . . . . . . . . . . . Reprogrammed . | . . . . . . . . . . . . . . . . Reused . | . . . . . . . . . . . . . . . . Traps Extracted . | . . . . . . . . . . . . . . . . Installed . | . . . . . . . . . . . . . . . . Triggered . | . . . . . . . . . . . . . . . . Machines | -11 -10 -10 -8 -7 -7 -7 -6 -5 -5 -5 -5 -4 -4 -3 -2 ---------- Run | Yrd Mat Sub Mat Fac Was Fac Fac Fac Upp Upp Zhi Pro Fac Res Res Machines Disabled 23 | . 1 . 1 . . 9 1 8 . . . . 1 1 1 Max in Single Turn 6 | . 1 . 1 . . 6 1 4 . . . . 1 1 1 Garrison Access 2 | . . . . 1 . . . . . . . . . 1 . Machines Repaired . | . . . . . . . . . . . . . . . . Machines Dismantled . | . . . . . . . . . . . . . . . . Machines Sabotaged . | . . . . . . . . . . . . . . . . Overloaded Fab Kills . | . . . . . . . . . . . . . . . . Hacking | -11 -10 -10 -8 -7 -7 -7 -6 -5 -5 -5 -5 -4 -4 -3 -2 --------- Run | Yrd Mat Sub Mat Fac Was Fac Fac Fac Upp Upp Zhi Pro Fac Res Res Machines Accessed 71 | . 4 1 6 12 . 9 9 4 1 . 9 . 10 3 3 Terminals 38 | . 3 . 4 5 . 6 7 3 1 . . . 5 2 2 Fabricators 2 | . . . . 2 . . . . . . . . . . . Repair Stations . | . . . . . . . . . . . . . . . . Recycling Units 11 | . 1 . . 3 . 2 1 . . . . . 3 . 1 Scanalyzers 3 | . . . 1 1 . . . . . . . . 1 . . Garrison Access 7 | . . . 1 1 . 1 1 1 . . . . 1 1 . Total Hacks 165 | . 9 4 14 21 . 12 21 9 1 . 48 . 17 5 4 Successful 91 | . 5 4 7 4 . . 9 3 1 . 48 . 8 1 1 Failed 73 | . 4 . 6 17 . 12 12 6 . . . . 9 4 3 Catastrophic 21 | . . . 2 7 . 5 1 2 . . . . 2 . 2 Database Lockouts 1 | . . . 1 . . . . . . . . . . . . Manual 58 | . 6 . 8 8 . 8 11 6 . . . . 6 3 2 Terminals 78 | . 7 . 11 8 . 9 19 7 1 . . . 10 3 3 Fabricators 2 | . . . . 2 . . . . . . . . . . . Repair Stations . | . . . . . . . . . . . . . . . . Recycling Units 16 | . 2 . . 7 . 2 1 . . . . . 3 . 1 Scanalyzers 7 | . . . 2 2 . . . . . . . . 3 . . Garrison Access 10 | . . . 1 2 . 1 1 2 . . . . 1 2 . Terminal Hacks 62 | . 1 4 2 . . . 4 . 1 . 48 . 2 . . Record 42 | . . 4 . . . . . . 1 . 36 . 1 . . Part Schematic 4 | . . . . . . . . . . . 4 . . . . Robot Analysis 4 | . . . . . . . . . . . 4 . . . . Prototype ID Bank 5 | . . . . . . . 1 . . . 4 . . . . Open DSF 1 | . . . . . . . 1 . . . . . . . . Branch Access Points 1 | . . . 1 . . . . . . . . . . . . Alert Level 2 | . . . . . . . 1 . . . . . 1 . . Unreport Threat 1 | . . . . . . . 1 . . . . . . . . Hauler Manifests 2 | . 1 . 1 . . . . . . . . . . . . Fabricator Hacks . | . . . . . . . . . . . . . . . . Repair Station Hacks . | . . . . . . . . . . . . . . . . Recycling Unit Hacks 4 | . . . . 2 . . 1 . . . . . 1 . . Retrieve Components 4 | . . . . 2 . . 1 . . . . . 1 . . Scanalyzer 5 | . . . 1 1 . . . . . . . . 3 . . Retrieve Study 5 | . . . 1 1 . . . . . . . . 3 . . Garrison Access Hacks 2 | . . . . 1 . . . . . . . . . 1 . Seal Access 2 | . . . . 1 . . . . . . . . . 1 . Unauthorized Hacks 18 | . 4 . 4 . . . 4 3 . . . . 2 . 1 Terminals 17 | . 3 . 4 . . . 4 3 . . . . 2 . 1 Botnet 17 | . 3 . 4 . . . 4 3 . . . . 2 . 1 Fabricators . | . . . . . . . . . . . . . . . . Repair Stations . | . . . . . . . . . . . . . . . . Recycling Units 1 | . 1 . . . . . . . . . . . . . . Tunnel 1 | . 1 . . . . . . . . . . . . . . Scanalyzers . | . . . . . . . . . . . . . . . . Garrison Access . | . . . . . . . . . . . . . . . . Data Cores Recovered 4 | . . . . . . 1 2 . . . . . . 1 . Used . | . . . . . . . . . . . . . . . . Hacking Detections 57 | . 3 . 5 11 . 9 9 4 1 . . . 9 3 3 Full Trace Events 4 | . . . . 2 . 1 . . . . . . 1 . . Feedback Events . | . . . . . . . . . . . . . . . . Feedback Blocked . | . . . . . . . . . . . . . . . . Robot Schematics Acquired . | . . . . . . . . . . . . . . . . Robots Built . | . . . . . . . . . . . . . . . . Authchips . | . . . . . . . . . . . . . . . . Time . | . . . . . . . . . . . . . . . . Total Robot Build Rating . | . . . . . . . . . . . . . . . . Part Schematics Acquired 4 | . . . . . . . . . . . 4 . . . . Parts Built . | . . . . . . . . . . . . . . . . Authchips . | . . . . . . . . . . . . . . . . Time . | . . . . . . . . . . . . . . . . Total Part Build Rating . | . . . . . . . . . . . . . . . . Part Studies Acquired 5 | . . . 1 1 . . . . . . . . 3 . . Parts Repaired . | . . . . . . . . . . . . . . . . Time . | . . . . . . . . . . . . . . . . Parts Recycled . | . . . . . . . . . . . . . . . . Recycled Matter . | . . . . . . . . . . . . . . . . Retrieved Matter . | . . . . . . . . . . . . . . . . Retrieved Components 4 | . . . . . . . 3 . . . . . 1 . . Parts Scanalyzed . | . . . . . . . . . . . . . . . . Part Schematics Acquired . | . . . . . . . . . . . . . . . . Parts Damaged . | . . . . . . . . . . . . . . . . Bothacking | -11 -10 -10 -8 -7 -7 -7 -6 -5 -5 -5 -5 -4 -4 -3 -2 ------------ Run | Yrd Mat Sub Mat Fac Was Fac Fac Fac Upp Upp Zhi Pro Fac Res Res Used RIF Installer . | . . . . . . . . . . . . . . . . Robots Hacked . | . . . . . . . . . . . . . . . . Non-combat . | . . . . . . . . . . . . . . . . Combat . | . . . . . . . . . . . . . . . . Robot Hacks Applied . | . . . . . . . . . . . . . . . . Relay Couplers Released . | . . . . . . . . . . . . . . . . Fabnet Peak Effective % . | . . . . . . . . . . . . . . . . Robots Rewired . | . . . . . . . . . . . . . . . . Allies Hacked . | . . . . . . . . . . . . . . . . Hacks Repelled . | . . . . . . . . . . . . . . . . Allies | -11 -10 -10 -8 -7 -7 -7 -6 -5 -5 -5 -5 -4 -4 -3 -2 -------- Run | Yrd Mat Sub Mat Fac Was Fac Fac Fac Upp Upp Zhi Pro Fac Res Res Total Allies . | . . . . . . . . . . . . . . . . Largest Group . | . . . . . . . . . . . . . . . . Highest-Rated Group . | . . . . . . . . . . . . . . . . Highest-Rated Ally . | . . . . . . . . . . . . . . . . Total Orders . | . . . . . . . . . . . . . . . . Ally Attacks . | . . . . . . . . . . . . . . . . Total Damage . | . . . . . . . . . . . . . . . . Kills . | . . . . . . . . . . . . . . . . Allies Corrupted . | . . . . . . . . . . . . . . . . Allies Melted . | . . . . . . . . . . . . . . . . Intel | -11 -10 -10 -8 -7 -7 -7 -6 -5 -5 -5 -5 -4 -4 -3 -2 ------- Run | Yrd Mat Sub Mat Fac Was Fac Fac Fac Upp Upp Zhi Pro Fac Res Res Active Infowar (turns) 8499 | 6 899 360 . 1197 . 1301 744 607 712 163 143 189 1088 596 494 Sensors 3992 | . . . . . . . . 607 712 163 143 189 1088 596 494 Seismic 2491 | 6 899 360 . 1197 . 29 . . . . . . . . . Jamming 2045 | . . . . . . 1301 744 . . . . . . . . Robot Analysis Total 4 | . . . . . . . . . . . 4 . . . . Derelict Logs Recovered 2 | . . 1 . . . . . . 1 . . . . . . Drone Launches . | . . . . . . . . . . . . . . . . Drone Recoveries . | . . . . . . . . . . . . . . . . Exploration | -11 -10 -10 -8 -7 -7 -7 -6 -5 -5 -5 -5 -4 -4 -3 -2 ------------- Run | Yrd Mat Sub Mat Fac Was Fac Fac Fac Upp Upp Zhi Pro Fac Res Res Turns Passed 13130 | 79 899 1772 1319 1711 89 1328 1004 1284 712 163 143 189 1088 596 754 Spaces Moved 9525 | 55 520 1290 713 1056 73 708 586 876 575 231 181 259 1224 532 646 Core 122 | 5 . . . . . . . . . . . . . . 117 Treads 186 | . . 2 21 3 . 159 . 1 . . . . . . . Legs 16 | . . . . . . . . . . . . . . . 16 Wheels 5087 | 50 520 1288 692 1053 73 549 586 253 . . . . . . 23 Hover 4056 | . . . . . . . . 622 575 231 181 259 1224 532 432 Flight 58 | . . . . . . . . . . . . . . . 58 Fastest Speed 25 | 50 90 105 120 95 100 100 130 105 105 52 52 52 48 46 25 Average Speed 98 | 89 94 115 127 114 109 151 130 112 105 53 52 56 49 50 71 Slowest Speed 320 | 150 105 260 155 225 115 240 130 320 105 105 52 102 52 96 280 Overloaded Moves . | . . . . . . . . . . . . . . . . Propulsion Burnouts . | . . . . . . . . . . . . . . . . Robots Hopped 1 | . . . . . . . . . . . . . . . 1 Potential Cave-ins 12 | . . . . . . . . . 12 . . . . . . Cave-ins Triggered 1 | . . . . . . . . . 1 . . . . . . Teleports 1 | . . . . . . . . . . . . . . . 1 Exploration Rate (%) 44 | 4 74 82 62 30 73 29 17 21 79 52 62 50 41 17 20 Regions Visited 15 Branch Regions 5 Pre-discovered Areas 6 | . 1 2 . . . . . . . . 3 . . . . Known Exits Taken . | . . . . . . . . . . . . . . . . Unknown Exits Taken 13 | 1 1 1 1 . . 1 1 1 1 1 1 1 1 1 . Scrap Searched 21 | . . 19 . . . . . . 2 . . . . . . Spaces Dug 211 | . 7 3 13 32 . 3 3 24 16 . . . 55 29 26 Terrain Destroyed 492 | . 10 8 13 35 1 74 8 124 25 5 . 6 57 40 86 Melee 165 | . . 3 13 31 . 3 3 12 . . . . 51 26 23 Projectile 112 | . . . . 4 1 19 5 27 25 5 . 6 6 4 10 AOE 215 | . 10 5 . . . 52 . 85 . . . . . 10 53 Terrain Rammed . | . . . . . . . . . . . . . . . . Walls Destroyed . | . . . . . . . . . . . . . . . . Machines Disabled . | . . . . . . . . . . . . . . . . Actions | -11 -10 -10 -8 -7 -7 -7 -6 -5 -5 -5 -5 -4 -4 -3 -2 --------- Run | Yrd Mat Sub Mat Fac Was Fac Fac Fac Upp Upp Zhi Pro Fac Res Res Total 12118 | 71 879 1477 980 1399 82 858 748 1067 640 253 210 286 1569 777 822 Wait 1401 | . 326 86 132 209 3 51 62 61 28 10 1 12 221 170 29 Move 9508 | 54 519 1289 712 1056 72 707 585 875 573 230 180 258 1223 531 644 Hop 1 | . . . . . . . . . . . . . . . 1 Pick Up 114 | 4 4 15 17 11 2 17 11 8 . . 2 . 10 3 10 Fast Attach 62 | 7 . 4 2 2 1 1 7 11 . . 4 1 3 4 15 Attach 70 | . . 2 7 6 1 16 6 2 . 4 4 2 3 3 14 Detach 18 | . . . 2 1 1 1 1 1 . 1 3 3 . . 4 Swap 123 | 1 4 12 15 20 1 4 16 16 1 . 2 1 12 9 9 Drop 103 | . 1 14 15 8 1 4 13 23 1 . 3 . 9 4 7 Fire 448 | 5 25 48 59 43 . 52 42 54 36 8 . 9 12 25 30 Melee 249 | . . 7 19 43 . 5 5 16 . . 11 . 76 28 39 Ram 20 | . . . . . . . . . . . . . . . 20 Kick . | . . . . . . . . . . . . . . . . Crush . | . . . . . . . . . . . . . . . . Escape Stasis 1 | . . . . . . . . . 1 . . . . . . Rewire . | . . . . . . . . . . . . . . . . Trap . | . . . . . . . . . . . . . . . . Miscellaneous . | . . . . . . . . . . . . . . . . Route ------- -11/Scrapyard -10/Materials (discovered 4 exits: [*Mat x2] / [*Min] / *Sub) -10/Subcaves (discovered 2 exits: *Mat x2) -8/Materials (discovered 2 exits: *Fac x2) -7/Factory (discovered 3 exits: *Fac x2 / [*Low]) -7/Waste -7/Factory -6/Factory -5/Factory (discovered 2 exits: *Fac / *Upp) -5/Upper Caves -5/Upper Caves -5/Zhirov -4/Proximity Caves -4/Factory -3/Research (discovered 3 exits: *Res x2 / [*Arm]) -2/Research History --------- Turn | Location | Event 15 | -11/Scrapyard | Discovered new exit (range 15) 80 | -11/Scrapyard | Entered Materials 153 | -10/Materials | Discovered new exit (range 11) 234 | -10/Materials | Discovered new exit (range 8) 304 | -10/Materials | Build established: Mutant 392 | -10/Materials | Discovered new exit (range 7) 850 | -10/Materials | Discovered new exit (range 15) 979 | -10/Materials | Entered Subcaves 1033 | -10/Subcaves | A swath of the cavern ceiling suddenly collapsed 1492 | -10/Subcaves | Disturbed a concealed Subdweller 1637 | -10/Subcaves | Core integrity fell below 50% 1818 | -10/Subcaves | Learned location of Zion (-7) 1989 | -10/Subcaves | Discovered new exit (range 7) 2390 | -10/Subcaves | Visited Clippyterm 2393 | -10/Subcaves | Learned location of Section 7 (-3) 2393 | -10/Subcaves | Learned Research security intel 2690 | -10/Subcaves | Discovered new exit (range 13) 2735 | -10/Subcaves | Ambushed by Subdweller buried in earth 2736 | -10/Subcaves | Core integrity fell below 20% 2751 | -10/Subcaves | Entered Materials 2751 | -8/Materials | Evolved 4 slots: Propulsion x1, Utility x2, Weapon x1 2836 | -8/Materials | Garrison activated, responded to threat 3143 | -8/Materials | Build established: Derelict-Gunner 3149 | -8/Materials | Discovered new exit (range 4) 3343 | -8/Materials | Central database locked down 3506 | -8/Materials | Discovered new exit (range 8) 4070 | -8/Materials | Entered Factory 4070 | -7/Factory | Evolved 2 slots: Propulsion x1, Utility x1 4234 | -7/Factory | Discovered new exit (range 11) 4913 | -7/Factory | Discovered new exit (range 6) 5163 | -7/Factory | Discovered new exit (range 8) 5264 | -7/Factory | Found Prototype Launcher 5264 | -7/Factory | Identified Rocket Array 5781 | -7/Factory | Sucked down chute 5781 | -7/Factory | Entered Waste 5794 | -7/Waste | Spotted C-40 Crusher 5795 | -7/Waste | Spotted C-40 Crusher 5796 | -7/Waste | EMP discharged 5818 | -7/Waste | Crushed by Compactor (1 part destroyed, 1 dropped) 5821 | -7/Waste | Spotted C-40 Crusher 5821 | -7/Waste | Spotted C-40 Crusher 5827 | -7/Waste | Spotted C-40 Crusher 5829 | -7/Waste | Spotted C-40 Crusher 5840 | -7/Waste | Crushed by Compactor (1 part destroyed, 1 dropped) 5855 | -7/Waste | Discovered new exit (range 13) 5870 | -7/Waste | Entered Factory 5871 | -7/Factory | Lost 4 parts (2u2w) 6317 | -7/Factory | Build established: Mutant 6364 | -7/Factory | Lost 4 parts (2n2w) 6642 | -7/Factory | Build established: Gunner 7099 | -7/Factory | System corruption reached 10% 7137 | -7/Factory | Discovered new exit (range 12) 7138 | -7/Factory | Lost 3 parts (1p1u1w) 7198 | -7/Factory | Entered another Factory area 7198 | -6/Factory | Evolved 2 slots: Propulsion x1, Utility x1 7201 | -6/Factory | Identified exit to DSF 7932 | -6/Factory | Discovered new exit (range 9) 8002 | -6/Factory | Lost 4 parts (3u1w) 8202 | -6/Factory | Entered another Factory area 8202 | -5/Factory | Evolved 2 slots: Power x1, Utility x1 8343 | -5/Factory | Found Prototype Launcher 8343 | -5/Factory | Identified Tesla Bomb Launcher 9126 | -5/Factory | Build established: Tank 9368 | -5/Factory | Discovered new exit (range 16) 9462 | -5/Factory | Discovered new exit (range 15) 9486 | -5/Factory | Entered Upper Caves 9493 | -5/Upper Caves | Learned Factory garrison access intel 9613 | -5/Upper Caves | Attracted the attention of an 0b10 checkpoint 9661 | -5/Upper Caves | Encountered a Warlord checkpoint 10135 | -5/Upper Caves | Crushed by falling debris 10180 | -5/Upper Caves | Discovered new exit (range 7) 10198 | -5/Upper Caves | Entered another Upper Caves area 10298 | -5/Upper Caves | Lost 4 parts (1n2u1w) 10356 | -5/Upper Caves | Discovered new exit (range 8) 10361 | -5/Upper Caves | Entered Zhirov 10363 | -5/Zhirov | Discovered new exit (range 3) 10372 | -5/Zhirov | Met Zhirov 10382 | -5/Zhirov | Learned location of Quarantine (-3) 10382 | -5/Zhirov | Learned location of Command (-1) 10393 | -5/Zhirov | Zhirov requested help retrieving the SGEMP Prototype 10405 | -5/Zhirov | Found Alien Artifact 10417 | -5/Zhirov | Identified Integrated Dissipator 10417 | -5/Zhirov | Installed Integrated Dissipator, increased core heat dissipation (+20) 10420 | -5/Zhirov | Found Alien Artifact 10504 | -5/Zhirov | Entered Proximity Caves 10506 | -4/Proximity Caves | Attracted the attention of an 0b10 checkpoint 10531 | -4/Proximity Caves | Build established: Mutant 10634 | -4/Proximity Caves | Spotted B-86 Titan 10677 | -4/Proximity Caves | Discovered new exit (range 8) 10693 | -4/Proximity Caves | Entered Factory 10693 | -4/Factory | Evolved 2 slots: Propulsion x1, Utility x1 10694 | -4/Factory | Loaded intel: 4 garrison access locations 10708 | -4/Factory | Garrison activated, responded to threat 11691 | -4/Factory | Discovered new exit (range 14) 11781 | -4/Factory | Entered Research 11781 | -3/Research | Evolved 2 slots: Power x1, Propulsion x1 12068 | -3/Research | Found Gamma Bomb Array 12084 | -3/Research | Discovered new exit (range 14) 12313 | -3/Research | Found Prototype Device 12313 | -3/Research | Identified Exp. Thermal Defense Suite 12367 | -3/Research | Discovered new exit (range 2) 12369 | -3/Research | Discovered new exit (range 6) 12377 | -3/Research | Entered another Research area 12377 | -2/Research | Evolved 2 slots: Propulsion x1, Utility x1 12384 | -2/Research | Lost 4 parts (1p1n1u1w) 12438 | -2/Research | Spotted B-90 Cyclops 12679 | -2/Research | Found Fusion Bomb Launcher 12772 | -2/Research | Lost 3 parts (2p1w) 12958 | -2/Research | System corruption reached 10% 12966 | -2/Research | Garrison activated, responded to threat 12982 | -2/Research | Identified Transdimensional Reconstructor 12982 | -2/Research | Warped through subspace 12997 | -2/Research | Destroyed 7 combat bots 13011 | -2/Research | Lost 17 parts (3p6n5u3w) 13020 | -2/Research | Spotted B-90 Cyclops 13021 | -2/Research | Core integrity fell below 50% 13118 | -2/Research | Core integrity fell below 20% 13131 | -2/Research | Destroyed by P-80 Master with Gamma Rifle Last Messages --------------- 13092_ Acquired Lrn. Proton Cannon+. 13110_ System corrupted: Slammed into wall. 13112_ Dual-blade Saw destroyed. 13115_ Adv. Surge Thruster destroyed. 13115_ Slammed into K-01 Serf. 13115_ K-01 Serf sends out distress signal. 13116_ System corrupted: Component data lost. 13118_ Slammed into P-80 Master. 13119_ P-80 Master knocked back. 13119_ Destabilizing: System corrupted (+1). 13120_ Slammed into P-80 Master. 13121_ Destabilizing: System corrupted (+2). 13122_ Slammed into U-05 Engineer. 13122_ Destabilizing: Core damaged (-14). 13122_ ALERT: Construction progress impeded, dispatching reinforcements to local area. 13125_ W-44 Eye sends out distress signal. 13127_ Extracted 85 matter. 13128_ Slammed into G-73 Enforcer. 13129_ Slammed into K-01 Serf. Map ----- +----------------------------------------------------+ | ????????????# ## !!! #???????????????????????? | | ????????????# ## !!! #???????????????????????? | | ????????????# ## !! #???????????????????????? | | ????????????# ## #???????????????????????? | | ????????????# #"##########?####??????????????????? | | ?????######## "##?????????? #??????????????????? | | ?????# ]] # ##????????? #??????????????????? | | ?????# ] # #?????? ! ???????????????????? | | ?????# # ## # ?????????????????????? | | ?????# # ###########+####### #???? ?????????? | | ?????# / = = ?? ?????????? | | ?????# # ######## ##????????? ?????????? | | ?????##+##### #???? ## #?????????? ?????????? | | ??????# #??????# #?????????? ?######### | | ????###+#######??????# #?????????? ?# """ | | ????# %#?????????# #?????????? ?# ""T"" | | ????# * #???#######+##uR #?????????# ## "" "" | | ????# #???# # #########?# ## | | ????# #???# ! # ]k# ! #?# ## | | ????# #???# !#t # #?# *# | | ???## #???# !=# # #?# #" | | ???#"######"#??# !wg R# #?# ## |%! ! | | ???# #?????##??# !#p m# ### #""###/### | | ???###?????????# # g # ## !% | | ???????????????# #% # ## | | ???????????????# !#@ !# / | | ???????????????########## [# ## | | ?????????????????????# [t[[# ## | | ????????????????????? %!#= * ## ####### | | ???????????????????? ## =u####+##### #?# | | ????????????????????" g[ =%! #### | | ????????????????????" g %%* [ | | ???????????????????? #u =*! =% | | ???????????????????? " | | ????????????????? ###+### | | ????????????????? ? ##+############? | | ???????????????? ???# # ??????????? | | ???????????????? ?????# # ?????????# | | ???????????????????????# w # ""????????# | | ???????????????????????#k # ""????????# | | ???????????????????????+ # ""????????# | | ???????????????????????# # ?????????####### | | ???????????????????????# #] ???????????????? | | ???????????????????????# #####???????????????? | | ???????????????????????? ????????????????????? | | ?????????????????????????? ????????????????????? | | ?????????????????????????????????????????????????? | | ?????????????????????????????????????????????????? | | ?????????????????????????????????????????????????? | | ?????????????????????????????????????????????????? | +----------------------------------------------------+ Best States ------------- Heat Dissipation 106 Energy Generation 57 Energy Capacity 935 Matter Stores 300 Matter Capacity 300 Sight Range 16 Robot Scan Range 18 Terrain Scan Density 10 Jamming Range 12 Additional Mass Support 12 Armor Coverage 225 Resistance: TH 30 Power Shielding 66 Evasion (%) 67 Targeting Accuracy 8 Target Analysis 6 Recoil Reduction 7 Item Schematics ----------------- Assault Drone Bay | -5/Zhirov | Free Exp. Heat Sink | -5/Zhirov | Free Exp. Optical Array | -5/Zhirov | Free Imp. Arc Thrower | -5/Zhirov | Free Robot Schematics ------------------ None Fabricated ------------ Nothing Repaired ---------- Nothing Studied --------- Arm. Wheel | -8/Materials | Hacked Imp. Ion Engine | -7/Factory | Hacked Lrn. Proton Cannon | -4/Factory | Hacked Gravmag Array | -4/Factory | Hacked Antigrav System | -4/Factory | Hacked Alien Tech Used ----------------- Integrated Dissipator Transdimensional Reconstructor Achievements -------------- Alien Tech All Kinds Of Bad News Can't Catch Me Ooh, Shiny! Subspace Traveler Challenges ------------ None Game ------ Seed AmuletFluxClaymores Manual? 0 Play Time 02:55:21 Cumulative 72.9 hours Start 2026.06.18 @ 22:43:43 End 2026.06.20 @ 00:13:53 Sessions 3 Manual Loads 0 Difficulty Rogue Special Mode None Game No. 78 Rogue 78 Adventurer 0 Explorer 0 Win Type - Total 0 Types 0/0/0/0/0/0/0/0/0/0 Lore% 58 Gallery% 42 Achievement% 33 Wizard Run 0 Options --------- Layout 1 ASCII 0 Keyboard 0 Movement Mouse Keybinds 0 Fullscreen 1 Font 32/SmallcapsGlow Map View 77x35 Zoom Use 0% Tactical HUD 1 Map Filters NONE Filters NONE Steam 1 RUN: 12c6e473-886d-4776-8e9f-515acc28e0c2